[Event "Vastgota Open 2023"]
[Site "Skara stadshotell, Jarnvagsgatan 5, Skara, Sweden"]
[Date "2023.02.18"]
[Round "2.7"]
[White "Sundstrom, Bjorn"]
[Black "Golubka, Petro"]
[Result "0-1"]
[TimeControl "15 minutes + 5 seconds per move from move one (Round 1 - 2) / 30 minutes + 10 seconds per move from move one (Round 3 - 9)"]
[BlackTitle "GM"]
[WhiteFideId "1712071"]
[BlackFideId "14114224"]
[WhiteElo "2003"]
[BlackElo "2407"]

1. e4 {[%clk 00:15:05]} {[%emt 00:00:03]} b6 {[%clk 00:15:06]} {[%emt
00:00:06]} 2. d4 {[%clk 00:14:59]} {[%emt 00:00:10]} Bb7 {[%clk 00:15:05]}
{[%emt 00:00:07]} 3. Bd3 {[%clk 00:14:37]} {[%emt 00:00:27]} e6 {[%clk
00:15:06]} {[%emt 00:00:04]} 4. Qe2 {[%clk 00:13:11]} {[%emt 00:01:29]} Nf6
{[%clk 00:14:58]} {[%emt 00:00:14]} 5. Nf3 {[%clk 00:08:45]} {[%emt 00:04:31]}
d5 {[%clk 00:14:35]} {[%emt 00:00:30]} 6. e5 {[%clk 00:08:32]} {[%emt
00:00:17]} Ne4 {[%clk 00:14:19]} {[%emt 00:00:21]} 7. O-O {[%clk 00:08:16]}
{[%emt 00:00:21]} Be7 {[%clk 00:14:05]} {[%emt 00:00:19]} 8. c3 {[%clk
00:07:27]} {[%emt 00:00:54]} c5 {[%clk 00:13:53]} {[%emt 00:00:17]} 9. Nbd2
{[%clk 00:04:48]} {[%emt 00:02:43]} Nxd2 {[%clk 00:13:46]} {[%emt 00:00:13]} 10.
Bxd2 {[%clk 00:04:47]} {[%emt 00:00:06]} Nc6 {[%clk 00:13:38]} {[%emt
00:00:13]} 11. Rac1 {[%clk 00:04:21]} {[%emt 00:00:30]} a5 {[%clk 00:13:32]}
{[%emt 00:00:12]} 12. Rfd1 {[%clk 00:02:42]} {[%emt 00:01:43]} c4 {[%clk
00:12:52]} {[%emt 00:00:45]} 13. Bc2 {[%clk 00:02:32]} {[%emt 00:00:13]} b5
{[%clk 00:12:57]} {[%emt 00:00:03]} 14. Ne1 {[%clk 00:02:21]} {[%emt 00:00:16]}
h5 {[%clk 00:12:43]} {[%emt 00:00:19]} 15. f4 {[%clk 00:02:13]} {[%emt
00:00:13]} g6 {[%clk 00:12:43]} {[%emt 00:00:06]} 16. Qf3 {[%clk 00:01:37]}
{[%emt 00:00:39]} Qb6 {[%clk 00:12:36]} {[%emt 00:00:14]} 17. Kh1 {[%clk
00:01:22]} {[%emt 00:00:19]} b4 {[%clk 00:12:16]} {[%emt 00:00:26]} 18. Qh3
{[%clk 00:00:59]} {[%emt 00:00:27]} b3 {[%clk 00:11:50]} {[%emt 00:00:31]} 19.
axb3 {[%clk 00:01:03]} {[%emt 00:00:01]} cxb3 {[%clk 00:11:49]} {[%emt
00:00:07]} 20. Bxg6 {[%clk 00:01:06]} {[%emt 00:00:01]} Nxd4 {[%clk 00:11:03]}
{[%emt 00:00:51]} 21. cxd4 {[%clk 00:01:07]} {[%emt 00:00:04]} fxg6 {[%clk
00:11:07]} {[%emt 00:00:01]} 22. Qg3 {[%clk 00:00:58]} {[%emt 00:00:14]} Rg8
{[%clk 00:10:30]} {[%emt 00:00:42]} 23. Nf3 {[%clk 00:00:57]} {[%emt 00:00:06]}
a4 {[%clk 00:10:24]} {[%emt 00:00:12]} 24. Bc3 {[%clk 00:00:12]} {[%emt
00:00:49]} Ba6 {[%clk 00:10:19]} {[%emt 00:00:10]} 25. Ng5 {[%clk 00:00:15]}
{[%emt 00:00:02]} Be2 {[%clk 00:10:10]} {[%emt 00:00:14]} 26. Re1 {[%clk
00:00:16]} {[%emt 00:00:03]} Bg4 {[%clk 00:10:13]} {[%emt 00:00:03]} 27. Nh7
{[%clk 00:00:16]} {[%emt 00:00:06]} Kf7 {[%clk 00:09:56]} {[%emt 00:00:21]} 28.
Ng5+ {[%clk 00:00:11]} {[%emt 00:00:10]} Kg7 {[%clk 00:09:50]} {[%emt
00:00:11]} 29. h3 {[%clk 00:00:15]} {[%emt 00:00:01]} Bf5 {[%clk 00:09:46]}
{[%emt 00:00:09]} 30. Qf3 {[%clk 00:00:15]} {[%emt 00:00:04]} Rh8 {[%clk
00:09:35]} {[%emt 00:00:17]} 31. Kg1 {[%clk 00:00:10]} {[%emt 00:00:09]} h4
{[%clk 00:08:52]} {[%emt 00:00:49]} 32. Ra1 {[%clk 00:00:12]} {[%emt 00:00:03]}
a3 {[%clk 00:08:34]} {[%emt 00:00:24]} 0-1

[Event "Vastgota Open 2023"]
[Site "Skara stadshotell, Jarnvagsgatan 5, Skara, Sweden"]
[Date "2023.02.18"]
[Round "2.8"]
[White "Kucuksari, Kaan"]
[Black "Muntean, Victor"]
[Result "1-0"]
[TimeControl "15 minutes + 5 seconds per move from move one (Round 1 - 2) / 30 minutes + 10 seconds per move from move one (Round 3 - 9)"]
[WhiteTitle "IM"]
[WhiteFideId "6380166"]
[BlackFideId "1054414"]
[WhiteElo "2380"]
[BlackElo "1985"]

1. d4 {[%clk 00:14:51]} {[%emt 00:00:18]} Nf6 {[%clk 00:15:09]} {[%emt
00:00:01]} 2. Bf4 {[%clk 00:14:53]} {[%emt 00:00:03]} g6 {[%clk 00:15:10]}
{[%emt 00:00:04]} 3. Nc3 {[%clk 00:14:56]} {[%emt 00:00:02]} Bg7 {[%clk
00:15:08]} {[%emt 00:00:08]} 4. e4 {[%clk 00:14:59]} {[%emt 00:00:02]} d6
{[%clk 00:14:57]} {[%emt 00:00:16]} 5. Qd2 {[%clk 00:15:00]} {[%emt 00:00:03]}
Nh5 {[%clk 00:14:25]} {[%emt 00:00:37]} 6. Bg5 {[%clk 00:14:52]} {[%emt
00:00:12]} h6 {[%clk 00:14:19]} {[%emt 00:00:12]} 7. Be3 {[%clk 00:14:55]}
{[%emt 00:00:02]} e5 {[%clk 00:13:44]} {[%emt 00:00:40]} 8. O-O-O {[%clk
00:14:50]} {[%emt 00:00:10]} exd4 {[%clk 00:13:26]} {[%emt 00:00:23]} 9. Bxd4
{[%clk 00:14:53]} {[%emt 00:00:02]} Bxd4 {[%clk 00:13:23]} {[%emt 00:00:08]} 10.
Qxd4 {[%clk 00:14:56]} {[%emt 00:00:02]} O-O {[%clk 00:13:23]} {[%emt
00:00:06]} 11. h4 {[%clk 00:14:50]} {[%emt 00:00:11]} Nc6 {[%clk 00:12:57]}
{[%emt 00:00:31]} 12. Qd2 {[%clk 00:14:53]} {[%emt 00:00:01]} Kh7 {[%clk
00:12:42]} {[%emt 00:00:21]} 13. Be2 {[%clk 00:13:59]} {[%emt 00:00:58]} Ng7
{[%clk 00:12:38]} {[%emt 00:00:09]} 14. f4 {[%clk 00:13:44]} {[%emt 00:00:20]}
h5 {[%clk 00:12:07]} {[%emt 00:00:37]} 15. Nf3 {[%clk 00:13:40]} {[%emt
00:00:08]} f6 {[%clk 00:11:30]} {[%emt 00:00:42]} 16. Bd3 {[%clk 00:12:41]}
{[%emt 00:01:04]} Bg4 {[%clk 00:11:11]} {[%emt 00:00:24]} 17. Nd5 {[%clk
00:12:30]} {[%emt 00:00:16]} Ne7 {[%clk 00:10:12]} {[%emt 00:01:04]} 18. Ne3
{[%clk 00:12:33]} {[%emt 00:00:03]} Bxf3 {[%clk 00:09:57]} {[%emt 00:00:19]} 19.
gxf3 {[%clk 00:12:37]} {[%emt 00:00:02]} f5 {[%clk 00:09:49]} {[%emt 00:00:13]}
20. Rhg1 {[%clk 00:12:23]} {[%emt 00:00:18]} fxe4 {[%clk 00:09:12]} {[%emt
00:00:42]} 21. fxe4 {[%clk 00:11:54]} {[%emt 00:00:35]} Rxf4 {[%clk 00:08:50]}
{[%emt 00:00:26]} 22. Nf5 {[%clk 00:08:28]} {[%emt 00:03:32]} Rg4 {[%clk
00:08:48]} {[%emt 00:00:07]} 23. Qh6+ {[%clk 00:08:22]} {[%emt 00:00:10]} 1-0

[Event "Vastgota Open 2023"]
[Site "Skara stadshotell, Jarnvagsgatan 5, Skara, Sweden"]
[Date "2023.02.18"]
[Round "2.9"]
[White "Wesslen, Ulf"]
[Black "Kockum, Anton Frisk"]
[Result "0-1"]
[TimeControl "15 minutes + 5 seconds per move from move one (Round 1 - 2) / 30 minutes + 10 seconds per move from move one (Round 3 - 9)"]
[BlackTitle "FM"]
[WhiteFideId "1705199"]
[BlackFideId "1709143"]
[WhiteElo "1972"]
[BlackElo "2367"]

1. e4 {[%clk 00:15:07]} {[%emt 00:00:02]} e6 {[%clk 00:15:09]} {[%emt
00:00:02]} 2. d4 {[%clk 00:15:03]} {[%emt 00:00:09]} d5 {[%clk 00:15:13]}
{[%emt 00:00:02]} 3. Nc3 {[%clk 00:14:31]} {[%emt 00:00:37]} Bb4 {[%clk
00:15:15]} {[%emt 00:00:02]} 4. e5 {[%clk 00:14:31]} {[%emt 00:00:05]} Qd7
{[%clk 00:15:19]} {[%emt 00:00:01]} 5. a3 {[%clk 00:13:48]} {[%emt 00:00:48]}
Bxc3+ {[%clk 00:15:22]} {[%emt 00:00:03]} 6. bxc3 {[%clk 00:13:51]} {[%emt
00:00:02]} b6 {[%clk 00:15:25]} {[%emt 00:00:02]} 7. Qg4 {[%clk 00:12:57]}
{[%emt 00:00:58]} f5 {[%clk 00:15:28]} {[%emt 00:00:01]} 8. Qg3 {[%clk
00:12:20]} {[%emt 00:00:43]} Ba6 {[%clk 00:15:32]} {[%emt 00:00:02]} 9. Bd3
{[%clk 00:11:10]} {[%emt 00:01:14]} c5 {[%clk 00:15:02]} {[%emt 00:00:35]} 10.
Nh3 {[%clk 00:11:04]} {[%emt 00:00:11]} Bxd3 {[%clk 00:14:42]} {[%emt
00:00:25]} 11. Qxd3 {[%clk 00:10:39]} {[%emt 00:00:30]} Ne7 {[%clk 00:14:09]}
{[%emt 00:00:37]} 12. a4 {[%clk 00:10:20]} {[%emt 00:00:25]} O-O {[%clk
00:13:08]} {[%emt 00:01:06]} 13. Nf4 {[%clk 00:09:31]} {[%emt 00:00:53]} Nbc6
{[%clk 00:12:57]} {[%emt 00:00:17]} 14. O-O {[%clk 00:08:44]} {[%emt 00:00:52]}
Ng6 {[%clk 00:11:26]} {[%emt 00:01:36]} 15. Re1 {[%clk 00:07:17]} {[%emt
00:01:32]} Nxf4 {[%clk 00:11:15]} {[%emt 00:00:16]} 16. Bxf4 {[%clk 00:07:20]}
{[%emt 00:00:02]} Rac8 {[%clk 00:11:13]} {[%emt 00:00:07]} 17. dxc5 {[%clk
00:06:21]} {[%emt 00:01:04]} bxc5 {[%clk 00:11:16]} {[%emt 00:00:02]} 18. c4
{[%clk 00:06:22]} {[%emt 00:00:04]} d4 {[%clk 00:09:23]} {[%emt 00:01:58]} 19.
c3 {[%clk 00:06:03]} {[%emt 00:00:24]} Rb8 {[%clk 00:08:58]} {[%emt 00:00:30]}
20. cxd4 {[%clk 00:05:25]} {[%emt 00:00:43]} cxd4 {[%clk 00:07:37]} {[%emt
00:01:27]} 21. a5 {[%clk 00:04:48]} {[%emt 00:00:41]} Rb2 {[%clk 00:06:40]}
{[%emt 00:01:01]} 22. Bc1 {[%clk 00:04:15]} {[%emt 00:00:39]} Rb7 {[%clk
00:05:59]} {[%emt 00:00:46]} 23. a6 {[%clk 00:03:29]} {[%emt 00:00:51]} Rb6
{[%clk 00:05:57]} {[%emt 00:00:07]} 24. Ba3 {[%clk 00:03:00]} {[%emt 00:00:34]}
Rc8 {[%clk 00:04:51]} {[%emt 00:01:11]} 25. Bd6 {[%clk 00:02:55]} {[%emt
00:00:10]} Nb4 {[%clk 00:04:32]} {[%emt 00:00:24]} 26. Qb3 {[%clk 00:01:58]}
{[%emt 00:01:03]} Nxa6 {[%clk 00:04:05]} {[%emt 00:00:31]} 27. Qa2 {[%clk
00:02:02]} {[%emt 00:00:01]} d3 {[%clk 00:03:10]} {[%emt 00:01:01]} 28. h3
{[%clk 00:01:58]} {[%emt 00:00:09]} h6 {[%clk 00:03:09]} {[%emt 00:00:06]} 29.
Red1 {[%clk 00:01:57]} {[%emt 00:00:05]} Nb4 {[%clk 00:02:39]} {[%emt
00:00:35]} 30. Qxa7 {[%clk 00:01:54]} {[%emt 00:00:08]} Rb7 {[%clk 00:01:43]}
{[%emt 00:01:01]} 31. Qa4 {[%clk 00:01:29]} {[%emt 00:00:30]} Rxc4 {[%clk
00:01:25]} {[%emt 00:00:23]} 32. Qxd7 {[%clk 00:01:32]} {[%emt 00:00:02]} Rxd7
{[%clk 00:01:29]} {[%emt 00:00:01]} 33. Ra8+ {[%clk 00:01:36]} Kh7 {[%clk
00:01:07]} {[%emt 00:00:27]} 34. Re8 {[%clk 00:01:39]} {[%emt 00:00:02]} Rd4
{[%clk 00:00:40]} {[%emt 00:00:33]} 35. Rxe6 {[%clk 00:01:42]} {[%emt
00:00:02]} Nd5 {[%clk 00:00:44]} {[%emt 00:00:01]} 36. Rd2 {[%clk 00:01:38]}
{[%emt 00:00:09]} Nf4 {[%clk 00:00:24]} {[%emt 00:00:25]} 37. Re8 {[%clk
00:01:41]} Re4 {[%clk 00:00:28]} {[%emt 00:00:01]} 38. Ra8 {[%clk 00:01:37]}
{[%emt 00:00:09]} Re1+ {[%clk 00:00:24]} {[%emt 00:00:09]} 39. Kh2 {[%clk
00:01:41]} {[%emt 00:00:02]} Re2 {[%clk 00:00:27]} {[%emt 00:00:02]} 40. Raa2
{[%clk 00:01:38]} {[%emt 00:00:07]} Re1 {[%clk 00:00:10]} {[%emt 00:00:22]} 41.
g3 {[%clk 00:01:39]} {[%emt 00:00:05]} Ne6 {[%clk 00:00:13]} {[%emt 00:00:02]}
42. Rxd3 {[%clk 00:01:42]} {[%emt 00:00:01]} g5 {[%clk 00:00:12]} {[%emt
00:00:06]} 43. Kg2 {[%clk 00:01:39]} {[%emt 00:00:08]} Rxe5 {[%clk 00:00:11]}
{[%emt 00:00:07]} 44. Bxe5 {[%clk 00:01:38]} {[%emt 00:00:06]} Rxd3 {[%clk
00:00:15]} 45. Ra7+ {[%clk 00:01:23]} {[%emt 00:00:19]} Kg6 {[%clk 00:00:17]}
{[%emt 00:00:04]} 46. Re7 {[%clk 00:01:18]} {[%emt 00:00:10]} Nc5 {[%clk
00:00:09]} {[%emt 00:00:13]} 47. g4 {[%clk 00:01:15]} {[%emt 00:00:08]} fxg4
{[%clk 00:00:13]} {[%emt 00:00:01]} 48. hxg4 {[%clk 00:01:19]} h5 {[%clk
00:00:16]} {[%emt 00:00:02]} 49. Rc7 {[%clk 00:01:13]} {[%emt 00:00:10]} Rd5
{[%clk 00:00:14]} {[%emt 00:00:08]} 50. Rg7+ {[%clk 00:01:08]} {[%emt
00:00:10]} Kh6 {[%clk 00:00:17]} {[%emt 00:00:02]} 51. Re7 {[%clk 00:01:12]}
hxg4 {[%clk 00:00:20]} {[%emt 00:00:03]} 52. Kg3 {[%clk 00:01:07]} {[%emt
00:00:09]} Kh5 {[%clk 00:00:22]} {[%emt 00:00:03]} 53. Bb8 {[%clk 00:00:30]}
{[%emt 00:00:42]} Rd3+ {[%clk 00:00:22]} {[%emt 00:00:06]} 54. Kg2 {[%clk
00:00:33]} {[%emt 00:00:02]} Kg6 {[%clk 00:00:15]} {[%emt 00:00:11]} 55. Ra7
{[%clk 00:00:32]} {[%emt 00:00:06]} Ne6 {[%clk 00:00:14]} {[%emt 00:00:07]} 56.
Ra6 {[%clk 00:00:26]} {[%emt 00:00:11]} Kf5 {[%clk 00:00:16]} {[%emt 00:00:02]}
57. Kf1 {[%clk 00:00:27]} {[%emt 00:00:04]} Nf4 {[%clk 00:00:14]} {[%emt
00:00:08]} 58. Ke1 {[%clk 00:00:17]} {[%emt 00:00:14]} g3 {[%clk 00:00:14]}
{[%emt 00:00:05]} 59. fxg3 {[%clk 00:00:12]} {[%emt 00:00:10]} Rxg3 {[%clk
00:00:18]} {[%emt 00:00:02]} 60. Ra5+ {[%clk 00:00:12]} {[%emt 00:00:05]} Kg4
{[%clk 00:00:19]} {[%emt 00:00:03]} 61. Kf2 {[%clk 00:00:14]} {[%emt 00:00:03]}
Rf3+ {[%clk 00:00:22]} {[%emt 00:00:03]} 62. Ke1 {[%clk 00:00:18]} Rb3 {[%clk
00:00:18]} {[%emt 00:00:09]} 63. Bd6 {[%clk 00:00:13]} {[%emt 00:00:10]} Re3+
{[%clk 00:00:14]} {[%emt 00:00:09]} 64. Kf2 {[%clk 00:00:12]} {[%emt 00:00:05]}
Re2+ {[%clk 00:00:18]} {[%emt 00:00:02]} 65. Kf1 {[%clk 00:00:16]} Rc2 {[%clk
00:00:18]} {[%emt 00:00:03]} 66. Be7 {[%clk 00:00:19]} {[%emt 00:00:04]} Nh3
{[%clk 00:00:13]} {[%emt 00:00:10]} 67. Ra4+ {[%clk 00:00:20]} {[%emt
00:00:05]} Kf3 {[%clk 00:00:10]} {[%emt 00:00:07]} 68. Ra3+ {[%clk 00:00:23]}
{[%emt 00:00:02]} Kg4 {[%clk 00:00:14]} 69. Ra4+ {[%clk 00:00:27]} Nf4 {[%clk
00:00:18]} {[%emt 00:00:01]} 70. Ra5 {[%clk 00:00:31]} {[%emt 00:00:01]} Ne6
{[%clk 00:00:15]} {[%emt 00:00:08]} 71. Ra4+ {[%clk 00:00:35]} {[%emt
00:00:02]} Kf3 {[%clk 00:00:16]} {[%emt 00:00:03]} 72. Ra3+ {[%clk 00:00:39]}
{[%emt 00:00:02]} Ke4 {[%clk 00:00:18]} {[%emt 00:00:03]} 73. Ra5 {[%clk
00:00:39]} {[%emt 00:00:05]} g4 {[%clk 00:00:15]} {[%emt 00:00:08]} 74. Bf6
{[%clk 00:00:43]} Nf4 {[%clk 00:00:09]} {[%emt 00:00:11]} 75. Rg5 {[%clk
00:00:44]} {[%emt 00:00:03]} Kf3 {[%clk 00:00:12]} {[%emt 00:00:03]} 76. Ke1
{[%clk 00:00:44]} {[%emt 00:00:05]} g3 {[%clk 00:00:13]} {[%emt 00:00:04]} 77.
Kd1 {[%clk 00:00:42]} {[%emt 00:00:07]} Ra2 {[%clk 00:00:14]} {[%emt 00:00:04]}
78. Rg8 {[%clk 00:00:40]} {[%emt 00:00:06]} g2 {[%clk 00:00:16]} {[%emt
00:00:03]} 79. Bd4 {[%clk 00:00:44]} {[%emt 00:00:02]} Ra4 {[%clk 00:00:14]}
{[%emt 00:00:07]} 80. Bb6 {[%clk 00:00:43]} {[%emt 00:00:06]} Ra1+ {[%clk
00:00:15]} {[%emt 00:00:04]} 81. Kc2 {[%clk 00:00:46]} {[%emt 00:00:01]} Rf1
{[%clk 00:00:10]} {[%emt 00:00:11]} 82. Kd2 {[%clk 00:00:26]} {[%emt 00:00:24]}
Rb1 {[%clk 00:00:11]} {[%emt 00:00:04]} 83. Kc2 {[%emt 00:00:10]} 0-1

[Event "Vastgota Open 2023"]
[Site "Skara stadshotell, Jarnvagsgatan 5, Skara, Sweden"]
[Date "2023.02.18"]
[Round "2.10"]
[White "Bellon Lopez, Juan Manuel"]
[Black "Bengtsson, Siv"]
[Result "1/2-1/2"]
[TimeControl "15 minutes + 5 seconds per move from move one (Round 1 - 2) / 30 minutes + 10 seconds per move from move one (Round 3 - 9)"]
[WhiteTitle "GM"]
[WhiteFideId "2200031"]
[BlackFideId "1701673"]
[WhiteElo "2318"]
[BlackElo "1969"]

1. d4 {[%clk 00:15:09]} {[%emt 00:26:53]} Nf6 {[%clk 00:15:07]} {[%emt
00:00:05]} 2. Bg5 {[%clk 00:15:11]} {[%emt 00:00:03]} g6 {[%clk 00:15:02]}
{[%emt 00:00:11]} 3. Bxf6 {[%clk 00:15:13]} {[%emt 00:00:03]} exf6 {[%clk
00:15:05]} {[%emt 00:00:02]} 4. e3 {[%clk 00:15:15]} {[%emt 00:00:02]} d5
{[%clk 00:15:04]} {[%emt 00:00:06]} 5. Ne2 {[%clk 00:15:15]} {[%emt 00:00:05]}
Bg7 {[%clk 00:15:00]} {[%emt 00:00:08]} 6. Nf4 {[%clk 00:15:14]} {[%emt
00:00:06]} f5 {[%clk 00:14:33]} {[%emt 00:00:32]} 7. g3 {[%clk 00:14:45]}
{[%emt 00:00:34]} c6 {[%clk 00:14:19]} {[%emt 00:00:20]} 8. Nd2 {[%clk
00:14:34]} {[%emt 00:00:16]} Nd7 {[%clk 00:14:17]} {[%emt 00:00:07]} 9. c4
{[%clk 00:14:23]} {[%emt 00:00:16]} Nf6 {[%clk 00:14:12]} {[%emt 00:00:10]} 10.
Bg2 {[%clk 00:14:05]} {[%emt 00:00:23]} Ne4 {[%clk 00:12:54]} {[%emt 00:01:23]}
11. cxd5 {[%clk 00:13:53]} {[%emt 00:00:17]} cxd5 {[%clk 00:12:56]} {[%emt
00:00:03]} 12. O-O {[%clk 00:13:52]} {[%emt 00:00:06]} O-O {[%clk 00:12:51]}
{[%emt 00:00:10]} 13. Nxe4 {[%clk 00:12:14]} {[%emt 00:01:43]} dxe4 {[%clk
00:12:19]} {[%emt 00:00:37]} 14. h4 {[%clk 00:11:28]} {[%emt 00:00:51]} Bd7
{[%clk 00:09:27]} {[%emt 00:02:58]} 15. Qb3 {[%clk 00:11:10]} {[%emt 00:00:22]}
b6 {[%clk 00:09:11]} {[%emt 00:00:20]} 16. Rac1 {[%clk 00:10:46]} {[%emt
00:00:29]} Rc8 {[%clk 00:08:42]} {[%emt 00:00:35]} 17. Rc3 {[%clk 00:10:15]}
{[%emt 00:00:36]} Rxc3 {[%clk 00:07:58]} {[%emt 00:00:48]} 18. bxc3 {[%clk
00:10:07]} {[%emt 00:00:14]} Qe7 {[%clk 00:07:08]} {[%emt 00:00:54]} 19. Rc1
{[%clk 00:10:01]} {[%emt 00:00:12]} Be6 {[%clk 00:05:31]} {[%emt 00:01:42]} 20.
Qa4 {[%clk 00:10:00]} {[%emt 00:00:05]} Rc8 {[%clk 00:04:49]} {[%emt 00:00:48]}
21. d5 {[%clk 00:08:48]} {[%emt 00:01:18]} Bd7 {[%clk 00:04:03]} {[%emt
00:00:50]} 22. Qxa7 {[%clk 00:08:51]} {[%emt 00:00:01]} b5 {[%clk 00:03:38]}
{[%emt 00:00:31]} 23. Bf1 {[%clk 00:07:55]} {[%emt 00:01:00]} Qd6 {[%clk
00:03:31]} {[%emt 00:00:12]} 24. c4 {[%clk 00:07:49]} {[%emt 00:00:12]} bxc4
{[%clk 00:02:50]} {[%emt 00:00:46]} 25. Rxc4 {[%clk 00:07:52]} {[%emt
00:00:02]} Rxc4 {[%clk 00:01:51]} {[%emt 00:01:03]} 26. Bxc4 {[%clk 00:07:57]}
{[%emt 00:00:02]} h6 {[%clk 00:01:41]} {[%emt 00:00:14]} 27. Qa8+ {[%clk
00:06:31]} {[%emt 00:01:31]} Kh7 {[%clk 00:01:36]} {[%emt 00:00:10]} 28. Qd8
{[%clk 00:06:29]} {[%emt 00:00:05]} Bf6 {[%clk 00:01:22]} {[%emt 00:00:21]} 29.
Qa5 {[%clk 00:06:33]} {[%emt 00:00:01]} Be5 {[%clk 00:00:59]} {[%emt 00:00:29]}
30. Bb3 {[%clk 00:05:19]} {[%emt 00:01:18]} g5 {[%clk 00:00:52]} {[%emt
00:00:13]} 31. hxg5 {[%clk 00:05:16]} {[%emt 00:00:07]} hxg5 {[%clk 00:00:56]}
32. Ne2 {[%clk 00:05:00]} {[%emt 00:00:21]} f4 {[%clk 00:00:41]} {[%emt
00:00:19]} 33. exf4 {[%clk 00:03:33]} {[%emt 00:01:33]} gxf4 {[%clk 00:00:45]}
{[%emt 00:00:01]} 34. Qd2 {[%clk 00:02:40]} {[%emt 00:00:58]} fxg3 {[%clk
00:00:37]} {[%emt 00:00:13]} 35. Qg5 {[%clk 00:02:26]} {[%emt 00:00:19]} gxf2+
{[%clk 00:00:29]} {[%emt 00:00:12]} 36. Kxf2 {[%clk 00:02:29]} {[%emt
00:00:03]} Qb6+ {[%clk 00:00:27]} {[%emt 00:00:07]} 37. Kg2 {[%clk 00:02:28]}
{[%emt 00:00:04]} Qg6 {[%clk 00:00:30]} {[%emt 00:00:04]} 38. Qxg6+ {[%clk
00:02:26]} {[%emt 00:00:06]} Kxg6 {[%clk 00:00:34]} {[%emt 00:00:01]} 39. a4
{[%clk 00:02:13]} {[%emt 00:00:19]} f5 {[%emt 00:00:03]} 40. a5 {[%clk
00:02:16]} Bb5 {[%clk 00:00:40]} {[%emt 00:00:02]} 41. Ng3 {[%clk 00:01:47]}
{[%emt 00:00:33]} Bxg3 {[%clk 00:00:44]} {[%emt 00:00:02]} 42. Kxg3 {[%clk
00:01:51]} {[%emt 00:00:01]} Kf6 {[%clk 00:00:47]} {[%emt 00:00:01]} 43. Kf4
{[%clk 00:01:52]} {[%emt 00:00:05]} Ba6 {[%clk 00:00:39]} {[%emt 00:00:12]} 44.
Bc2 {[%clk 00:01:32]} {[%emt 00:00:25]} Bb5 {[%clk 00:00:23]} {[%emt 00:00:21]}
45. Bd1 {[%clk 00:01:30]} {[%emt 00:00:08]} Bc4 {[%clk 00:00:15]} {[%emt
00:00:13]} 46. d6 {[%clk 00:01:29]} {[%emt 00:00:06]} Ke6 {[%clk 00:00:18]}
{[%emt 00:00:02]} 47. Bh5 {[%clk 00:00:48]} {[%emt 00:00:46]} Kxd6 {[%clk
00:00:21]} {[%emt 00:00:02]} 48. Kxf5 {[%clk 00:00:52]} {[%emt 00:00:01]} e3
{[%clk 00:00:22]} {[%emt 00:00:04]} 49. Ke4 {[%clk 00:00:53]} {[%emt 00:00:04]}
e2 {[%clk 00:00:25]} {[%emt 00:00:01]} 50. Bxe2 {[%clk 00:00:58]} Bxe2 {[%clk
00:00:29]} {[%emt 00:00:02]} 51. a6 {[%clk 00:01:02]} Bxa6 {[%clk 00:00:33]}
1/2-1/2